bitfinex-derivatives/quotes_BTCF0:USTF0_20260207
["timestamp","ask_amount","ask_price","bid_price","bid_amount"]
[1770465606181,0.014724,67974.0,67945.0,0.54939974]
[1770465606384,0.00014065,67973.0,67945.0,0.54939974]
[1770465606788,0.014725,67971.0,67945.0,0.54939974]
[1770465606982,0.00012611,67970.0,67945.0,0.54939974]
[1770465607692,0.014725,67969.0,67945.0,0.54939974]
[1770465607993,0.014727,67961.0,67936.0,0.57013946]
[1770465608189,0.00014812,67960.0,67943.0,0.57013946]
[1770465608989,0.014725,67969.0,67943.0,0.57013946]
[1770465609292,0.872404,67973.0,67943.0,0.57013946]
[1770465610899,0.85768,67973.0,67943.0,0.58486946]
[1770465611098,0.872404,67973.0,67943.0,0.58486946]
[1770465611291,0.014725,67970.0,67943.0,0.57013946]
[1770465612300,0.014725,67968.0,67943.0,0.57013946]
[1770465613092,0.85768,67973.0,67943.0,0.57013946]
[1770465613298,0.85768,67973.0,67947.0,0.53368211]
[1770465613697,0.014723,67979.0,67949.0,0.53368211]
[1770465613897,0.5666373,67989.0,67953.0,0.53368211]
[1770465614097,0.014722,67984.0,67954.0,0.014728]
[1770465614288,0.5813583,67989.0,67957.0,0.014727]
[1770465614493,0.014721,67986.0,67958.0,0.53368211]
[1770465614898,0.014721,67986.0,67960.0,0.53368211]
[1770465616095,0.5666373,67985.0,67950.0,0.53368211]
[1770465616291,0.014723,67978.0,67952.0,0.53368211]
[1770465616697,0.014725,67969.0,67943.0,0.53368211]
[1770465617088,0.014724,67973.0,67943.0,0.53368211]
[1770465617295,0.5666373,67979.0,67943.0,0.53368211]
[1770465617502,0.5666373,67988.0,67949.0,0.53368211]
[1770465617702,0.014723,67977.0,67949.0,0.53368211]
[1770465617999,0.014719,67999.0,67957.0,0.53368211]
[1770465618199,0.014719,67999.0,67947.0,0.11603136]
[1770465618200,0.5666373,67997.0,67960.0,0.53368211]
[1770465618897,0.5666373,67991.0,67960.0,0.53368211]
[1770465619101,0.01472,67992.0,67942.0,0.14644362]
[1770465619102,0.5666373,67988.0,67951.0,0.53368211]
[1770465619299,0.014725,67969.0,67951.0,0.53368211]
[1770465619604,0.5666373,67979.0,67943.0,0.53368211]
[1770465619803,0.5666373,67973.0,67943.0,0.53368211]
[1770465620003,0.014727,67961.0,67943.0,0.53368211]
[1770465620304,0.5666373,67969.0,67943.0,0.53368211]
[1770465620997,0.014726,67966.0,67943.0,0.53368211]
[1770465621805,0.5666373,67969.0,67943.0,0.53368211]
[1770465622307,0.014728,67957.0,67934.0,0.53368211]
[1770465622512,0.014728,67957.0,67935.0,0.67840251]
[1770465623210,0.5666373,67969.0,67935.0,0.67840251]
[1770465623211,0.014728,67954.0,67935.0,0.67840251]
[1770465623704,0.014728,67957.0,67935.0,0.67840251]
[1770465624407,0.5666373,67969.0,67936.0,0.53368211]
[1770465624907,0.014726,67966.0,67936.0,0.53368211]
[1770465625212,0.014726,67963.0,67943.0,0.53368211]
[1770465625508,0.014722,67983.0,67943.0,0.53368211]
[1770465625509,0.014726,67967.0,67943.0,0.53368211]
[1770465626103,0.5666373,68035.0,67943.0,0.53368211]
[1770465626300,0.07345,68133.0,67998.0,0.53368211]
[1770465626301,0.5666373,68036.0,67998.0,0.53368211]
[1770465626896,0.5666373,68036.0,68001.0,0.53368211]
[1770465628402,0.5666373,68036.0,68002.0,0.54840011]
[1770465628610,0.5666373,68036.0,68002.0,0.53368211]
[1770465631511,0.5666373,68036.0,68003.0,0.014718]
[1770465632506,0.5666373,68036.0,68009.0,0.53368211]
[1770465636011,0.5666373,68036.0,67991.0,0.56901019]
[1770465636207,0.57950395,68089.0,67991.0,0.56901019]
[1770465636406,0.57950395,68089.0,68050.0,0.56901019]
[1770465636407,0.55440599,68089.0,68050.0,0.56901019]
[1770465636611,0.55440599,68089.0,68057.0,0.014706]
[1770465636818,0.57950395,68099.0,68062.0,0.014705]
[1770465637106,0.57950395,68099.0,68060.0,0.56901019]
[1770465637107,0.57950395,68099.0,68043.0,0.56901019]
[1770465637311,0.57950395,68099.0,68030.0,0.15148512]
[1770465637312,0.57950395,68099.0,68049.0,0.56901019]
[1770465637810,0.57950395,68099.0,68052.0,0.56901019]
[1770465639013,0.57936283,68099.0,68052.0,0.56901019]
[1770465640413,0.57936283,68099.0,68054.0,0.56901019]
[1770465642013,0.57936283,68099.0,68056.0,0.56901019]
[1770465644410,0.57936283,68099.0,68035.0,0.71589031]
[1770465644713,0.57936283,68099.0,68036.0,0.56901019]
[1770465644915,0.57936283,68099.0,68038.0,0.56901019]
[1770465645419,0.57936283,68099.0,68040.0,0.56901019]
[1770465646020,0.57936283,68099.0,68043.0,0.56901019]
[1770465646413,0.57936283,68099.0,68044.0,0.014709]
[1770465646616,0.57936283,68099.0,68027.0,0.014712]
[1770465646617,0.57950395,68196.0,68089.0,0.15148512]
[1770465646811,0.15148512,68200.0,68140.0,0.14370192]
[1770465646812,0.57950395,68194.0,68140.0,0.14370192]
[1770465647113,0.57950395,68194.0,68124.0,0.56901019]
[1770465647114,0.57950395,68194.0,68125.0,0.14326348]
[1770465647705,0.57950395,68179.0,68114.0,0.56901019]
[1770465648218,0.57950395,68179.0,68110.0,0.15148512]
[1770465648219,0.57950395,68179.0,68120.0,0.56901019]
[1770465648422,0.57950395,68179.0,68122.0,0.56901019]
[1770465649822,0.57950395,68179.0,68109.0,0.56901019]
[1770465650222,0.57950395,68169.0,68100.0,0.14524655]
[1770465650414,0.57950395,68169.0,68101.0,0.56901019]
[1770465652925,0.57950395,68169.0,68111.0,0.56901019]
[1770465653118,0.58050395,68169.0,68124.0,0.56901019]
[1770465653324,0.001,68169.0,68136.0,0.56901019]
[1770465653523,0.67844,68195.0,68142.0,0.56901019]
[1770465653734,1.02323213,68350.0,68171.0,0.56901019]
[1770465653735,0.0002,68201.0,68171.0,0.56901019]
[1770465654023,0.57950395,68214.0,68178.0,0.14801048]
[1770465654414,0.57950395,68214.0,68179.0,0.56901019]
[1770465654616,0.001,68195.0,68179.0,0.56901019]
[1770465654816,0.57950395,68214.0,68167.0,0.56901019]
[1770465655524,0.57950395,68214.0,68158.0,0.56901019]
[1770465655725,0.57950395,68214.0,68161.0,0.56901019]
[1770465655924,0.0002,68216.0,68181.0,0.56901019]
[1770465656421,0.57970395,68216.0,68181.0,0.56901019]
[1770465656832,0.57950395,68216.0,68181.0,0.56901019]
[1770465657834,0.0002,68225.0,68181.0,0.57001019]
[1770465658137,0.0002,68244.0,68201.0,0.56901019]
[1770465658427,0.57970395,68244.0,68201.0,0.56901019]
[1770465658932,0.0002,68244.0,68201.0,0.56901019]
[1770465659228,0.57950395,68256.0,68200.0,0.15079331]
[1770465659229,0.57950395,68256.0,68221.0,0.56901019]
[1770465659417,0.0002,68257.0,68221.0,0.56901019]
[1770465660021,0.0002,68267.0,68232.0,0.56901019]
[1770465660225,0.0648,68319.0,68232.0,0.56901019]
[1770465660226,0.57970395,68266.0,68232.0,0.56901019]
[1770465660629,0.57970395,68266.0,68207.0,0.56901019]
[1770465660829,0.57970395,68266.0,68170.0,0.22052499]
[1770465660830,0.57950395,68366.0,68289.0,0.20277019]
[1770465661022,0.58538898,68358.0,68302.0,0.56095351]
[1770465661223,0.58538898,68358.0,68304.0,0.56095351]
[1770465661422,0.57950395,68387.0,68304.0,0.56095351]
[1770465661727,0.57950395,68387.0,68337.0,0.56095351]
[1770465661928,0.15079331,68410.0,68320.0,0.15079331]
[1770465661929,0.57950395,68400.0,68342.0,0.56095351]
[1770465662128,0.06476,68445.0,68344.0,0.56095351]
[1770465662129,0.57950395,68430.0,68344.0,0.56095351]
[1770465662334,0.06476,68445.0,68363.0,0.56095351]
[1770465662335,0.57950395,68436.0,68363.0,0.56095351]
[1770465662521,0.57950395,68419.0,68363.0,0.56095351]
[1770465662719,0.57950395,68419.0,68364.0,0.36035497]
[1770465663024,0.57950395,68419.0,68355.0,0.14393825]
[1770465663025,0.73029726,68410.0,68356.0,0.56901019]
[1770465663225,0.57950395,68410.0,68358.0,0.56901019]
[1770465663420,0.15079331,68420.0,68358.0,0.56901019]
[1770465663627,0.57950395,68399.0,68359.0,0.36035497]
[1770465663929,0.57950395,68389.0,68329.0,0.56901019]
[1770465664339,0.57950395,68369.0,68330.0,0.36035497]
[1770465664731,0.57950395,68369.0,68309.0,0.56901019]
[1770465665028,0.57950395,68349.0,68294.0,0.56901019]
[1770465665232,0.60004,68373.0,68264.0,0.51854447]
[1770465665233,0.57950395,68319.0,68264.0,0.51854447]
[1770465665427,0.57950395,68309.0,68264.0,0.51854447]
[1770465665623,0.57950395,68309.0,68218.0,0.014671]
[1770465665624,0.57950395,68289.0,68235.0,0.51854447]
[1770465665924,0.15079331,68270.0,68235.0,0.51854447]
[1770465666127,0.00014356,68269.0,68235.0,0.51854447]
[1770465666933,0.00011706,68268.0,68235.0,0.51854447]
[1770465667128,1.29772723,68320.0,68235.0,0.51854447]
[1770465667129,0.52562902,68294.0,68235.0,0.51854447]
[1770465667430,0.0002,68280.0,68235.0,0.51954447]
[1770465667635,0.0002,68281.0,68243.0,0.44110338]
[1770465668037,0.52562902,68308.0,68257.0,0.44090338]
[1770465668233,0.0002,68293.0,68257.0,0.44090338]
[1770465668432,5.452e-05,68292.0,68257.0,0.44090338]
[1770465668629,0.15079331,68290.0,68257.0,0.44090338]
[1770465668831,0.52562902,68289.0,68241.0,0.44090338]
[1770465669135,5.452e-05,68288.0,68241.0,0.44090338]
[1770465669345,0.0002,68302.0,68241.0,0.44090338]
[1770465669530,0.0002,68302.0,68250.0,0.31877394]
[1770465669931,0.52562902,68307.0,68252.0,0.31877394]
[1770465670435,0.15079331,68290.0,68252.0,0.31877394]
[1770465670627,0.15079331,68290.0,68241.0,0.001]
[1770465670628,0.55146148,68289.0,68241.0,0.001]
[1770465670829,0.55146148,68289.0,68241.0,0.31977394]
[1770465671026,0.0002,68278.0,68241.0,0.31977394]
[1770465671940,0.0002,68278.0,68227.0,0.32744733]
[1770465671941,0.15079331,68270.0,68227.0,0.32744733]
[1770465672139,0.0002,68265.0,68227.0,0.32744733]
[1770465672637,0.0002,68265.0,68213.0,0.32744733]
[1770465672638,0.55166148,68265.0,68213.0,0.32744733]
[1770465672840,0.15079331,68250.0,68213.0,0.32744733]
[1770465673040,0.65188,68258.0,68213.0,0.32744733]
[1770465673345,0.55146148,68249.0,68199.0,0.41407979]
[1770465673537,0.55146148,68249.0,68227.0,0.00094548]
[1770465673741,0.55146148,68249.0,68199.0,0.41407979]
[1770465673938,0.0002,68282.0,68215.0,0.41502527]
[1770465674145,0.55166148,68282.0,68221.0,0.41502527]
[1770465674331,0.0002,68269.0,68226.0,0.41502527]
[1770465674542,0.0002,68269.0,68215.0,0.073361]
[1770465674543,0.0002,68269.0,68238.0,0.41502527]
[1770465674835,0.0002,68269.0,68238.0,0.42969227]
[1770465675048,0.0002,68269.0,68238.0,0.41502527]
[1770465675246,0.0002,68290.0,68246.0,0.40476528]
[1770465675648,0.0002,68304.0,68258.0,0.40476528]
[1770465675947,0.0002,68304.0,68266.0,0.40476528]
[1770465676349,0.06468,68340.0,68295.0,0.4077064]
[1770465676350,0.0002,68318.0,68295.0,0.4077064]
[1770465676551,0.0002,68328.0,68295.0,0.4077064]
[1770465676752,0.0002,68326.0,68275.0,0.40764752]
[1770465676942,0.0002,68326.0,68288.0,0.40764752]
[1770465677752,0.55166148,68326.0,68274.0,0.38197317]
[1770465677949,0.15079331,68310.0,68274.0,0.38197317]
[1770465678148,0.0002,68312.0,68274.0,0.38197317]
[1770465678956,0.1475,68389.0,68266.0,0.00114082]
[1770465678957,0.70225479,68310.0,68266.0,0.00114082]
[1770465679151,0.15079331,68290.0,68246.0,0.39224401]
[1770465679456,0.55146148,68289.0,68246.0,0.39224401]
[1770465679653,0.15079331,68270.0,68224.0,0.39324401]
[1770465679853,0.55146148,68269.0,68224.0,0.39324401]
[1770465680256,0.15079331,68250.0,68209.0,0.39324401]
[1770465680460,0.00013777,68249.0,68209.0,0.39324401]
[1770465681456,0.00013777,68249.0,68215.0,0.3985156]
[1770465681862,0.00013777,68249.0,68224.0,0.3995156]
[1770465682062,0.55146148,68269.0,68224.0,0.3995156]
[1770465682455,0.55146148,68269.0,68224.0,0.3985156]
[1770465682863,0.0002,68276.0,68224.0,0.4131856]
[1770465683050,0.0002,68276.0,68229.0,0.39077181]
[1770465683256,0.55166148,68276.0,68229.0,0.39077181]
[1770465683559,0.55146148,68276.0,68229.0,0.39077181]
[1770465684952,0.55146148,68276.0,68210.0,0.11241203]
[1770465684953,0.0002,68280.0,68239.0,0.3903181]
[1770465685151,0.0002,68280.0,68239.0,0.4049851]
[1770465685353,0.0002,68280.0,68244.0,0.3903181]
[1770465685554,0.55146148,68290.0,68244.0,0.3903181]
[1770465685751,0.55146148,68279.0,68231.0,0.3903181]
[1770465686657,0.55146148,68277.0,68211.0,0.11241203]
[1770465686863,0.55146148,68277.0,68225.0,0.01467]
[1770465687058,0.55146148,68277.0,68229.0,0.39417534]
[1770465687259,0.55146148,68277.0,68229.0,0.40884434]
[1770465687459,0.0002,68278.0,68240.0,0.39417534]
[1770465687956,0.55146148,68290.0,68240.0,0.39417534]
[1770465688164,0.15079331,68280.0,68240.0,0.39417534]
[1770465688368,0.55146148,68279.0,68240.0,0.39417534]
[1770465689057,0.55146148,68279.0,68242.0,0.39512196]
[1770465689364,0.0002,68282.0,68242.0,0.40978796]
[1770465689958,0.55146148,68292.0,68242.0,0.39512196]
[1770465690764,0.55146148,68279.0,68242.0,0.39512196]
[1770465691159,0.55146148,68279.0,68242.0,0.39612196]
[1770465691567,0.55146148,68279.0,68242.0,0.001]
[1770465691959,0.55146148,68279.0,68229.0,0.40986573]
[1770465692164,0.55146148,68276.0,68229.0,0.40986573]
[1770465692367,0.55146148,68259.0,68216.0,0.11241203]
[1770465692565,0.55146148,68259.0,68215.0,0.40986573]
[1770465692864,0.55146148,68259.0,68208.0,0.40986573]
[1770465693070,0.55146148,68259.0,68218.0,0.42255731]
[1770465693470,0.55146148,68259.0,68214.0,0.11241203]
[1770465693669,0.55146148,68259.0,68207.0,0.11241203]
[1770465694268,0.55146148,68256.0,68207.0,0.53496934]
[1770465694479,0.55146148,68256.0,68208.0,0.33255748]
[1770465694770,0.55146148,68256.0,68208.0,0.11241203]
[1770465695369,0.55146148,68249.0,68208.0,0.11241203]
[1770465695776,0.55146148,68249.0,68210.0,0.11241203]
[1770465695967,0.55146148,68249.0,68208.0,0.11241203]
[1770465696783,0.54409456,68229.0,68191.0,0.0001746]
[1770465697668,0.54409456,68229.0,68191.0,0.41073257]
[1770465697867,0.0002,68239.0,68192.0,0.23487988]
[1770465698063,0.0002,68239.0,68196.0,0.41055797]
[1770465698265,0.0002,68239.0,68197.0,0.22020288]
[1770465698474,0.001,68229.0,68198.0,0.41055797]
[1770465699674,0.001,68229.0,68191.0,0.50957189]
[1770465699868,0.001,68229.0,68192.0,0.72958783]
[1770465700063,0.001,68229.0,68193.0,0.50939729]
[1770465700270,0.54409456,68243.0,68195.0,0.50939729]
[1770465700469,0.54409456,68243.0,68194.0,0.22018186]
[1770465700470,0.54409456,68243.0,68197.0,0.50939729]
[1770465700774,0.54409456,68243.0,68199.0,0.50939729]
[1770465701870,0.54509456,68243.0,68199.0,0.50939729]
[1770465702178,0.54409456,68229.0,68191.0,0.0001746]
[1770465702976,0.0002,68235.0,68170.0,0.50540819]
[1770465702977,0.54409456,68209.0,68170.0,0.50540819]
[1770465703976,0.00010862,68208.0,68170.0,0.50540819]
[1770465704177,0.54409456,68208.0,68170.0,0.50540819]
[1770465704377,0.54409456,68206.0,68170.0,0.50540819]
[1770465705176,0.00016691,68205.0,68170.0,0.50540819]
[1770465706175,0.54409456,68204.0,68163.0,0.67632375]
[1770465706375,0.00010469,68203.0,68163.0,0.50264871]
[1770465706583,0.00017012,68202.0,68164.0,0.72292027]
[1770465706779,0.00016629,68201.0,68164.0,0.50264871]
[1770465707175,0.54409456,68204.0,68164.0,0.50264871]
[1770465707380,0.00013561,68200.0,68164.0,0.50264871]
[1770465707580,0.0001629,68199.0,68164.0,0.50264871]
[1770465707983,0.0001669,68198.0,68164.0,0.50264871]
[1770465708681,0.54409456,68204.0,68164.0,0.50264871]
[1770465708982,0.54409456,68202.0,68164.0,0.50264871]
[1770465709681,0.0001598,68201.0,68164.0,0.50264871]
[1770465709876,0.0001598,68201.0,68151.0,0.23163341]
[1770465709877,0.54409456,68199.0,68153.0,0.17367504]
[1770465710076,0.54409456,68189.0,68151.0,0.50481958]
[1770465710275,0.00014501,68188.0,68151.0,0.50481958]
[1770465710481,0.54409456,68187.0,68144.0,0.00014464]
[1770465710682,0.15063976,68190.0,68144.0,0.00014464]
[1770465710891,0.54409456,68185.0,68144.0,0.00014464]
[1770465711080,0.54409456,68199.0,68146.0,0.5061215]
[1770465711282,0.00017765,68184.0,68146.0,0.5061215]
[1770465711781,0.54409456,68199.0,68146.0,0.5061215]
[1770465712089,0.54409456,68179.0,68146.0,0.5061215]
[1770465712480,0.54409456,68179.0,68144.0,0.00014464]
[1770465712784,0.54409456,68178.0,68144.0,0.00014464]
[1770465712981,0.54409456,68176.0,68144.0,0.00014464]
[1770465713183,0.54409456,68175.0,68144.0,0.00014464]
[1770465713583,0.54409456,68174.0,68144.0,0.00014464]
[1770465713983,0.54409456,68159.0,68140.0,0.00282186]
[1770465714984,0.54409456,68159.0,68098.0,0.21694741]
[1770465714985,0.54409456,68158.0,68105.0,0.50148783]
[1770465715281,0.54409456,68158.0,68113.0,0.50148783]
[1770465715482,0.54409456,68158.0,68116.0,0.50148783]
[1770465716182,0.54409456,68156.0,68116.0,0.50148783]
[1770465716379,0.54409456,68154.0,68116.0,0.50148783]
[1770465716774,0.001,68159.0,68110.0,0.50148783]
[1770465716775,0.54409456,68153.0,68110.0,0.50148783]
[1770465716975,0.54409456,68151.0,68110.0,0.50148783]
[1770465717181,0.54427833,68150.0,68110.0,0.50148783]
[1770465717481,0.0002,68195.0,68110.0,0.50148783]
[1770465717482,0.00018377,68149.0,68110.0,0.50148783]
[1770465717687,0.54409456,68161.0,68110.0,0.50148783]
[1770465718180,0.54409456,68159.0,68110.0,0.50148783]
[1770465718588,0.54409456,68159.0,68112.0,0.50180531]
[1770465719282,0.54409456,68157.0,68112.0,0.50180531]
[1770465719483,0.54409456,68155.0,68112.0,0.50180531]
[1770465720290,0.54409456,68155.0,68113.0,0.014694]
[1770465720489,0.54409456,68154.0,68113.0,0.50200541]
[1770465720781,0.00012899,68153.0,68113.0,0.51669941]
[1770465720981,0.00012899,68153.0,68122.0,0.50272775]
[1770465721184,0.00012899,68153.0,68126.0,0.50272775]
[1770465722185,0.54409456,68166.0,68126.0,0.50272775]
[1770465722386,0.54409456,68166.0,68128.0,0.50272775]
[1770465723281,5.478e-05,68165.0,68128.0,0.50272775]
[1770465724488,5.478e-05,68165.0,68137.0,0.51183304]
[1770465724793,0.54414934,68165.0,68125.0,0.51183304]
[1770465724981,5.478e-05,68165.0,68134.0,0.51114906]
[1770465725583,5.478e-05,68165.0,68136.0,0.51114906]
[1770465725986,5.478e-05,68165.0,68141.0,0.51114906]
[1770465729389,0.53388207,68165.0,68129.0,0.50321048]
[1770465730586,0.53388207,68165.0,68131.0,0.50321048]
[1770465730891,0.53488207,68165.0,68131.0,0.50321048]
[1770465731298,0.0002,68208.0,68143.0,0.014687]
[1770465731488,0.0002,68254.0,68171.0,0.49829108]
[1770465731684,0.0002,68254.0,68144.0,0.06476]
[1770465731685,0.0002,68255.0,68203.0,0.49829108]
[1770465731896,0.0002,68255.0,68210.0,0.49829108]
[1770465732096,0.55229311,68255.0,68211.0,0.49829108]
[1770465732299,0.0002,68255.0,68220.0,0.49829108]
[1770465732594,0.0002,68255.0,68222.0,0.49829108]
[1770465732796,0.55209311,68267.0,68222.0,0.49829108]
[1770465732996,0.55209311,68267.0,68224.0,0.49829108]
[1770465733197,0.55209311,68267.0,68210.0,0.17323858]
[1770465733198,0.55209311,68267.0,68210.0,0.43138966]
[1770465733788,0.55209311,68267.0,68210.0,0.44606266]
[1770465733992,0.0002,68274.0,68246.0,0.014665]
[1770465734196,5.888e-05,68274.0,68232.0,0.014668]
[1770465734394,0.55215199,68274.0,68232.0,0.45461246]
[1770465734593,0.55215199,68274.0,68236.0,0.45461246]
[1770465734796,0.55215199,68274.0,68236.0,0.46927946]
[1770465734995,0.55215199,68274.0,68236.0,0.45461246]
[1770465735590,0.001,68267.0,68236.0,0.45461246]
[1770465736189,0.55215199,68274.0,68236.0,0.45461246]
[1770465738201,0.55215199,68274.0,68240.0,0.44577577]
[1770465738694,5.888e-05,68274.0,68245.0,0.43110877]
[1770465739301,0.55209311,68286.0,68254.0,0.45664995]
[1770465739808,0.55209311,68286.0,68254.0,0.44198695]
[1770465740010,0.55209311,68286.0,68243.0,0.45665295]
[1770465740509,0.55209311,68286.0,68247.0,0.014665]
[1770465740708,0.00588503,68358.0,68294.0,0.44178695]
[1770465740709,0.55797814,68358.0,68294.0,0.44178695]
[1770465741004,0.55797814,68358.0,68315.0,0.44478695]
[1770465741206,0.55209311,68372.0,68331.0,0.37390629]
[1770465741514,0.55209311,68372.0,68336.0,0.37390629]
[1770465742113,0.55209311,68372.0,68319.0,0.37390629]
[1770465742504,0.55209311,68372.0,68325.0,0.37390629]
[1770465743209,0.55209311,68372.0,68310.0,0.15063976]
[1770465743210,0.55209311,68372.0,68331.0,0.37340973]
[1770465743811,0.55209311,68372.0,68318.0,0.37340973]
[1770465744001,0.55209311,68372.0,68305.0,0.37340973]
[1770465744416,0.55209311,68372.0,68314.0,0.37340973]
[1770465744803,0.55209311,68346.0,68301.0,0.37340973]
[1770465746009,0.0002,68330.0,68301.0,0.37340973]
[1770465746206,0.0002,68337.0,68301.0,0.37340973]
[1770465746808,0.0002,68337.0,68303.0,0.014653]
[1770465747110,0.0002,68337.0,68301.0,0.38806273]
[1770465747411,0.0002,68338.0,68305.0,0.41938758]
[1770465747708,0.0002,68358.0,68318.0,0.26017129]
[1770465747914,0.0002,68358.0,68323.0,0.014649]
[1770465748314,0.54909311,68361.0,68322.0,0.014649]
[1770465748512,0.54909311,68361.0,68303.0,0.26017129]
[1770465749208,0.54909311,68361.0,68304.0,0.25203267]
[1770465749409,0.55229311,68347.0,68304.0,0.25203267]
[1770465749616,0.55229311,68347.0,68307.0,0.014652]
[1770465749913,0.55229311,68347.0,68304.0,0.00011254]
[1770465750420,0.0002,68330.0,68304.0,0.00011254]
[1770465751414,0.55229311,68330.0,68304.0,0.00011254]
[1770465751611,0.0002,68330.0,68304.0,0.24543751]
[1770465751816,0.0002,68336.0,68311.0,0.24532497]
[1770465752711,0.55209311,68354.0,68304.0,0.01476554]
[1770465752917,0.55209311,68354.0,68304.0,0.00011254]
[1770465753520,0.55209311,68354.0,68305.0,0.014653]
[1770465753721,0.0002,68341.0,68305.0,0.24753831]
[1770465754018,0.55229311,68341.0,68306.0,0.014652]
[1770465754216,0.55229311,68341.0,68306.0,0.24753831]
[1770465754414,0.0002,68341.0,68310.0,0.24753831]
[1770465754618,0.0002,68341.0,68311.0,0.014651]
[1770465754819,0.55209311,68353.0,68311.0,0.014651]
[1770465755015,0.55209311,68353.0,68304.0,0.00011254]
[1770465755520,0.55209311,68353.0,68319.0,0.01465]
[1770465755712,0.55209311,68353.0,68304.0,0.24159261]
[1770465756019,0.0002,68346.0,68310.0,0.014651]
[1770465756215,0.56324338,68346.0,68313.0,0.014651]
[1770465757013,0.0002,68342.0,68313.0,0.014651]
[1770465757413,0.56324338,68342.0,68304.0,0.24159261]
[1770465757612,0.56324338,68342.0,68308.0,0.23536942]
[1770465757828,0.0002,68342.0,68308.0,0.23536942]
[1770465758027,0.56304338,68354.0,68317.0,0.01465]
[1770465758224,0.56304338,68354.0,68319.0,0.23536942]
[1770465758429,0.0002,68362.0,68333.0,0.23536942]
[1770465758720,0.56304338,68384.0,68345.0,0.23536942]
[1770465758922,0.0002,68378.0,68351.0,0.014643]
[1770465759115,0.56304338,68384.0,68351.0,0.014643]
[1770465759315,0.56304338,68384.0,68347.0,0.23129176]
[1770465759715,0.56304338,68384.0,68337.0,0.23129176]
[1770465760020,0.56304338,68384.0,68343.0,0.014644]
[1770465760226,0.0002,68364.0,68339.0,0.23129176]
[1770465760523,0.56324338,68364.0,68333.0,0.11295146]
[1770465760717,0.56324338,68364.0,68327.0,0.11295146]
[1770465760916,0.56324338,68364.0,68316.0,0.23129176]
[1770465761318,0.56304338,68353.0,68316.0,0.23129176]
[1770465761517,0.56304338,68353.0,68319.0,0.11295146]
[1770465761718,0.56304338,68353.0,68322.0,0.11295146]
[1770465761917,0.56304338,68353.0,68317.0,0.01465]
[1770465761918,0.56304338,68405.0,68323.0,0.24700759]
[1770465762120,1.14195465,68460.0,68352.0,0.11295146]
[1770465762121,0.0002,68373.0,68352.0,0.11295146]
[1770465762321,0.0012,68364.0,68349.0,0.11295146]
[1770465762518,0.0012,68364.0,68352.0,0.11295146]
[1770465762723,0.0012,68364.0,68349.0,0.11295146]
[1770465762913,0.0012,68364.0,68342.0,0.11295146]
[1770465762914,0.0002,68363.0,68342.0,0.11295146]
[1770465763317,0.0002,68363.0,68346.0,0.11295146]
[1770465763518,0.0002,68363.0,68341.0,0.11295146]
[1770465763823,0.0002,68363.0,68340.0,0.11295146]
[1770465764212,0.0002,68363.0,68341.0,0.33269009]
[1770465764412,0.56324338,68363.0,68341.0,0.11295146]
[1770465765020,0.56324338,68363.0,68335.0,0.00071427]
[1770465765624,0.56324338,68363.0,68331.0,0.11295146]
[1770465765823,0.56324338,68363.0,68330.0,0.11295146]
[1770465766325,0.56324338,68363.0,68328.0,0.11477242]
[1770465766521,0.56324338,68363.0,68324.0,0.16860381]
[1770465766728,0.56324338,68363.0,68323.0,0.16860381]
[1770465768120,0.56324338,68363.0,68326.0,0.16860381]
[1770465768320,0.56324338,68363.0,68327.0,0.16860381]
[1770465768622,0.56424338,68363.0,68328.0,0.16860381]
[1770465769016,0.56424338,68363.0,68310.0,0.36619136]
[1770465769017,0.56304338,68361.0,68304.0,0.57934798]
[1770465769221,0.56304338,68361.0,68304.0,0.00011254]
[1770465769417,0.56304338,68361.0,68307.0,0.57923544]
[1770465769834,0.56304338,68361.0,68304.0,0.00011254]
[1770465770133,0.56304338,68361.0,68305.0,0.57923544]
[1770465770631,0.56304338,68359.0,68305.0,0.57923544]
[1770465770924,0.56304338,68359.0,68304.0,0.00011254]
[1770465770925,0.71054338,68359.0,68304.0,0.00011254]
[1770465771128,0.56304338,68353.0,68304.0,0.00011254]
[1770465771330,0.56304338,68351.0,68304.0,0.00011254]
[1770465771828,0.15013866,68360.0,68304.0,0.00011254]
[1770465771829,0.56304338,68347.0,68304.0,0.00011254]
[1770465772019,0.56304338,68345.0,68304.0,0.00011254]
[1770465772220,0.56304338,68343.0,68304.0,0.00011254]
[1770465773024,0.56304338,68341.0,68304.0,0.00011254]
[1770465773833,0.56304338,68339.0,68304.0,0.00011254]
[1770465775031,0.0002,68338.0,68304.0,0.57934798]
[1770465775223,0.0002,68338.0,68319.0,0.57923544]
[1770465776428,0.0002,68338.0,68308.0,0.57923544]
[1770465777120,0.0002,68338.0,68310.0,0.57923544]
[1770465778327,0.56304338,68372.0,68337.0,0.57923544]
[1770465778527,0.56304338,68372.0,68325.0,0.57923544]
[1770465778738,0.56304338,68370.0,68329.0,0.57923544]
[1770465779231,0.56304338,68368.0,68317.0,0.57923544]
[1770465779436,0.56304338,68368.0,68321.0,0.014649]
[1770465779638,0.56304338,68366.0,68321.0,0.014649]
[1770465779843,0.56304338,68366.0,68319.0,0.57923544]
[1770465780136,0.56304338,68364.0,68308.0,0.59388744]
[1770465780937,0.56304338,68364.0,68308.0,0.57923544]
[1770465781127,0.0648,68403.0,68308.0,0.57923544]
[1770465781128,0.56304338,68358.0,68308.0,0.57923544]
[1770465781535,0.56304338,68356.0,68308.0,0.57923544]
[1770465781743,0.56304338,68356.0,68312.0,0.57923544]
[1770465781943,0.56304338,68354.0,68312.0,0.57923544]
[1770465782542,0.56304338,68352.0,68312.0,0.57923544]
[1770465782942,0.56304338,68350.0,68312.0,0.57923544]
[1770465783543,0.0002,68349.0,68312.0,0.57923544]
[1770465783941,0.0002,68349.0,68316.0,0.57923544]
[1770465788044,0.53970219,68349.0,68316.0,0.57923544]
[1770465788943,0.53950219,68349.0,68316.0,0.57923544]
[1770465789445,0.53950219,68347.0,68316.0,0.57923544]
[1770465791543,0.1475,68383.0,68310.0,0.57967386]
[1770465791544,0.0002,68346.0,68310.0,0.57967386]
[1770465791738,0.57488346,68351.0,68310.0,0.57967386]
[1770465792140,0.57488346,68349.0,68310.0,0.57967386]
[1770465792641,0.57488346,68347.0,68310.0,0.57967386]
[1770465792846,0.57488346,68347.0,68314.0,0.57967386]
[1770465793047,0.0002,68346.0,68317.0,0.57967386]
[1770465793451,0.57488346,68345.0,68305.0,0.57967386]
[1770465796750,0.72238346,68345.0,68304.0,0.00011254]
[1770465797050,0.72238346,68345.0,68283.0,0.36352938]
[1770465797051,0.57488346,68338.0,68285.0,0.57967386]
[1770465797451,0.57488346,68336.0,68293.0,0.57967386]
[1770465797650,0.57488346,68336.0,68283.0,0.14703115]
[1770465797957,0.57488346,68334.0,68283.0,0.14703115]
[1770465798164,0.15015016,68340.0,68283.0,0.14703115]
[1770465798165,0.57488346,68332.0,68283.0,0.14703115]
[1770465798352,0.57488346,68332.0,68285.0,0.57967386]